fUSD/lending_fUSD_20260121
["ID","MTS","AMOUNT","RATE_DAILY","PERIOD"]
[402898237,1768959642335,-250.0,0.00017989,2]
[402898238,1768959642359,-250.0,0.00017989,2]
[402898239,1768959642382,-250.0,0.00017989,2]
[402898240,1768959642407,-500.0,0.00017989,2]
[402898241,1768959642433,-250.0,0.00017989,2]
[402898242,1768959642459,-500.0,0.00017989,2]
[402898243,1768959642483,-250.0,0.00017989,2]
[402898244,1768959642508,-250.0,0.00017989,2]
[402898245,1768959642533,-555.58263699,0.00017989,2]
[402898246,1768959642559,-250.0,0.00017989,2]
[402898247,1768959642584,-250.0,0.00017989,2]
[402898248,1768959642610,-250.0,0.00017989,2]
[402898249,1768959642635,-500.0,0.00017989,2]
[402898250,1768959642660,-250.0,0.00017989,2]
[402898251,1768959642685,-1518.84634261,0.00017989,2]
[402898252,1768959642709,-263.54300886,0.00017989,2]
[402898253,1768959642735,-500.0,0.00017989,2]
[402898254,1768959642759,-250.0,0.00017989,2]
[402898255,1768959642783,-322.6107,0.00017989,2]
[402898256,1768959642807,-250.0,0.00017989,2]
[402898257,1768959642833,-500.0,0.00017989,2]
[402898258,1768959642858,-500.0,0.00017989,2]
[402898259,1768959642885,-500.0,0.00017989,2]
[402898260,1768959642911,-533.88981491,0.00017989,2]
[402898261,1768959642937,-500.0,0.00017989,2]
[402898262,1768959642963,-500.0,0.00017989,2]
[402898263,1768959642987,-250.0,0.00017989,2]
[402898264,1768959643012,-500.0,0.00017989,2]
[402898265,1768959643039,-500.0,0.00017989,2]
[402898266,1768959643064,-500.0,0.00017989,2]
[402898267,1768959643089,-500.0,0.00017989,2]
[402898268,1768959643117,-500.0,0.00017989,2]
[402898269,1768959643143,-500.0,0.00017989,2]
[402898270,1768959643166,-743.50770149,0.00017989,2]
[402898271,1768959643193,-250.0,0.00017989,2]
[402898272,1768959643217,-250.0,0.00017989,2]
[402898273,1768959643241,-250.0,0.00017989,2]
[402898274,1768959643266,-262.97426462,0.00017989,2]
[402898275,1768959643291,-2567.0,0.00017989,2]
[402898276,1768959643314,-500.0,0.00017989,2]
[402898277,1768959643338,-500.0,0.00017989,2]
[402898278,1768959643361,-515.99657842,0.00017989,2]
[402898279,1768959643385,-842.27567471,0.00017989,2]
[402898280,1768959643409,-190.39473726,0.0001799,2]
[402898281,1768959643434,-165.16,0.0001799,2]
[402898282,1768959643458,-165.16,0.0001799,2]
[402898283,1768959643482,-165.16,0.0001799,2]
[402898284,1768959643505,-242.27001132,0.00017993,2]
[402898285,1768959643530,-2175.25280854,0.00017996,2]
[402898286,1768959643556,-60838.9863486,0.00017997,2]
[402898290,1768959737250,10000.0,0.000226,120]
[402898293,1768959820287,10000.0,0.000226,120]
[402898294,1768959855272,199.49,0.000226,120]
[402898295,1768959880163,1225.18,0.00016415,2]
[402898303,1768960231609,-382.46,0.00016803,2]
[402898304,1768960231619,-278.64,0.00016803,2]
[402898305,1768960231629,-150.0,0.00016866,2]
[402898306,1768960231638,-250.0,0.00017,2]
[402898307,1768960231647,-502.99563211,0.00017073,2]
[402898308,1768960231656,-122.69754765,0.00017073,2]
[402898309,1768960231739,-377.30245235,0.00017073,2]
[402898310,1768960231749,-504.85371096,0.00017073,2]
[402898311,1768960231760,-48.88083669,0.00017075,2]
[402898313,1768960231839,-951.11916331,0.00017075,2]
[402898314,1768960231849,-1079.8,0.00017213,2]
[402898315,1768960231859,-1079.8,0.00017259,2]
[402898316,1768960231868,-1079.8,0.00017304,2]
[402898317,1768960231878,-1079.8,0.00017349,2]
[402898319,1768960231887,-447.4441425,0.00017373,2]
[402898320,1768960231896,-150.0,0.00017373,2]
[402898321,1768960231906,-500.0,0.00017373,2]
[402898322,1768960231916,-1200.0,0.00017394,2]
[402898323,1768960231925,-1079.8,0.00017395,2]
[402898325,1768960231934,-382.46,0.00017434,2]
[402898327,1768960231943,-300.0,0.00017439,2]
[402898329,1768960231952,-1079.8,0.0001744,2]
[402898331,1768960231962,-2362.78814875,0.00017468,2]
[402898333,1768960231975,-1079.8,0.00017485,2]
[402898335,1768960231984,-500.0,0.000175,6]
[402898337,1768960231993,-1079.8,0.0001753,2]
[402898345,1768960232382,-1542.63,0.0001753,2]
[402898346,1768960232404,-1079.8,0.00017576,2]
[402898347,1768960232414,-1000.0,0.000176,6]
[402898348,1768960232424,-505.45116359,0.00017621,2]
[402898349,1768960232433,-1079.8,0.00017621,2]
[402898350,1768960232442,-1079.8,0.00017666,2]
[402898351,1768960232451,-1500.0,0.000177,6]
[402898352,1768960232460,-1079.8,0.00017712,2]
[402898353,1768960232469,-446.0,0.00017715,2]
[402898354,1768960232479,-500.0,0.00017715,2]
[402898355,1768960232488,-500.0,0.00017715,2]
[402898356,1768960232496,-3822.05,0.00017728,2]
[402898357,1768960232506,-2866.51,0.00017728,2]
[402898358,1768960232515,-1079.8,0.00017757,2]
[402898359,1768960232525,-500.0,0.00017769,2]
[402898360,1768960232534,-375.24573631,0.00017769,2]
[402898361,1768960232545,-67.39042591,0.00017769,2]
[402898362,1768960232554,-157.30576405,0.00017769,2]
[402898363,1768960232563,-535.0,0.00017769,2]
[402898364,1768960232572,-446.0,0.0001777,2]
[402898365,1768960232581,-500.0,0.0001777,2]
[402898366,1768960232591,-500.0,0.0001777,2]
[402898367,1768960232600,-1027.48159461,0.00017772,2]
[402898368,1768960232613,-2000.0,0.000178,6]
[402898369,1768960232622,-1079.8,0.00017802,2]
[402898370,1768960232631,-200.57153731,0.00017808,2]
[402898371,1768960232641,-446.0,0.00017825,2]
[402898372,1768960232650,-160.03389215,0.00017825,2]
[402898373,1768960232659,-500.0,0.00017825,2]
[402898374,1768960232669,-500.0,0.00017825,2]
[402898375,1768960232678,-69.36010504,0.00017825,2]
[402898376,1768960232690,-93.36963614,0.00017825,2]
[402898377,1768960232698,-440.0,0.00017825,2]
[402898378,1768960232708,-500.0,0.00017825,2]
[402898379,1768960232718,-218.98,0.00017825,2]
[402898380,1768960232727,-1079.8,0.00017847,2]
[402898381,1768960232736,-352.06844764,0.00017862,2]
[402898382,1768960232745,-245.49494641,0.00017879,2]
[402898383,1768960232757,-200.50505359,0.00017879,2]
[402898384,1768960232766,-264.56037295,0.00017879,2]
[402898385,1768960232775,-500.0,0.0001788,2]
[402898386,1768960232784,-282.33419494,0.0001788,2]
[402898387,1768960232795,-157.66580506,0.0001788,2]
[402898388,1768960232805,-500.0,0.0001788,2]
[402898389,1768960232815,-174.61919141,0.00017889,2]
[402898390,1768960232824,-2567.0,0.00017889,2]
[402898391,1768960232834,-329.73998638,0.00017889,2]
[402898392,1768960232843,-1079.8,0.00017893,2]
[402898393,1768960232852,-243.77731656,0.00017896,2]
[402898394,1768960232861,-430.05208226,0.00017896,2]
[402898395,1768960232870,-643.33219533,0.00017896,2]
[402898396,1768960232880,-308.03044949,0.00017897,2]
[402898397,1768960232889,-6023.75373637,0.000179,2]
[402898398,1768960232898,-2500.0,0.000179,6]
[402898399,1768960232907,-955.23924242,0.000179,2]
[402898400,1768960232916,-158.29467315,0.000179,2]
[402898401,1768960232926,-1816.8102016,0.000179,2]
[402898402,1768960232936,-165.70013004,0.000179,2]
[402898403,1768960232946,-2294.94933159,0.00017919,2]
[402898404,1768960232955,-150.53742023,0.00017921,2]
[402898405,1768960232964,-504.3835703,0.00017921,2]
[402898406,1768960232973,-446.0,0.00017934,2]
[402898407,1768960232983,-500.0,0.00017935,2]
[402898408,1768960232993,-440.0,0.00017935,2]
[402898409,1768960233004,-503.82191735,0.00017935,2]
[402898410,1768960233013,-1079.8,0.00017938,2]
[402898411,1768960233022,-150.0,0.00017973,2]
[402898412,1768960233033,-150.0,0.00017973,2]
[402898413,1768960233042,-267.06,0.00017976,2]
[402898414,1768960233051,-1079.8,0.00017983,2]
[402898415,1768960233061,-446.0,0.00017989,2]
[402898416,1768960233070,-500.0,0.00017989,2]
[402898417,1768960233079,-500.0,0.00017989,2]
[402898418,1768960233088,-500.0,0.00017989,2]
[402898419,1768960233098,-500.0,0.00017989,2]
[402898420,1768960233107,-500.0,0.00017989,2]
[402898421,1768960233117,-500.0,0.00017989,2]
[402898422,1768960233126,-500.0,0.00017989,2]
[402898423,1768960233135,-500.0,0.00017989,2]
[402898424,1768960233144,-500.0,0.00017989,2]
[402898425,1768960233153,-500.0,0.00017989,2]
[402898426,1768960233162,-500.0,0.00017989,2]
[402898427,1768960233171,-500.0,0.00017989,2]
[402898428,1768960233180,-500.0,0.00017989,2]
[402898429,1768960233189,-500.0,0.00017989,2]
[402898430,1768960233199,-533.88981491,0.00017989,2]
[402898431,1768960233209,-500.0,0.00017989,2]
[402898432,1768960233219,-500.0,0.00017989,2]
[402898433,1768960233229,-500.0,0.00017989,2]
[402898434,1768960233238,-500.0,0.00017989,2]
[402898435,1768960233248,-500.0,0.00017989,2]
[402898436,1768960233258,-500.0,0.00017989,2]
[402898437,1768960233267,-500.0,0.00017989,2]
[402898438,1768960233276,-500.0,0.00017989,2]
[402898439,1768960233288,-500.0,0.00017989,2]
[402898440,1768960233297,-500.0,0.00017989,2]
[402898441,1768960233307,-500.0,0.00017989,2]
[402898442,1768960233316,-500.0,0.00017989,2]
[402898443,1768960233326,-500.0,0.00017989,2]
[402898444,1768960233336,-500.0,0.00017989,2]
[402898445,1768960233345,-500.0,0.00017989,2]
[402898446,1768960233356,-500.0,0.00017989,2]
[402898447,1768960233365,-500.0,0.00017989,2]
[402898448,1768960233378,-288.80173367,0.00017989,2]
[402898449,1768960233388,-500.0,0.00017989,2]
[402898450,1768960233397,-500.0,0.00017989,2]
[402898451,1768960233407,-500.0,0.00017989,2]
[402898452,1768960233416,-500.0,0.00017989,2]
[402898453,1768960233426,-500.0,0.00017989,2]
[402898454,1768960233436,-500.0,0.00017989,2]
[402898455,1768960233445,-500.0,0.00017989,2]
[402898456,1768960233454,-500.0,0.00017989,2]
[402898457,1768960233464,-500.0,0.00017989,2]
[402898458,1768960233474,-440.0,0.00017989,2]
[402898459,1768960233483,-190.39473727,0.0001799,2]
[402898460,1768960233493,-36715.34548268,0.00017995,2]
[402898461,1768960233505,-52793.72223772,0.00017995,2]
[402898462,1768960233515,-5393.2659418,0.00017997,2]
[402898463,1768960233523,-2931.7881851,0.00017997,2]
[402898464,1768960233532,-416.1267414,0.00017997,2]
[402898465,1768960233542,-792.68921247,0.00017997,2]
[402898466,1768960233551,-150.0,0.00017999,2]
[402898467,1768960233561,-177.18681103,0.00017999,2]
[402898468,1768960233570,-622.73174709,0.00017999,2]
[402898469,1768960233579,-500.0,0.00017999,2]
[402898470,1768960233589,-510.66982026,0.00017999,2]
[402898471,1768960233599,-300.0,0.00017999,2]
[402898472,1768960233609,-500.0,0.00017999,2]
[402898473,1768960233618,-500.0,0.00017999,2]
[402898474,1768960233627,-217.08682436,0.00017999,2]
[402898475,1768960233636,-505.56624435,0.00017999,2]
[402898476,1768960233645,-159.52,0.00017999,2]
[402898477,1768960233655,-500.0,0.00017999,2]
[402898478,1768960233665,-500.0,0.00017999,2]
[402898479,1768960233674,-586.19616648,0.00017999,2]
[402898480,1768960233683,-300.0,0.00017999,2]
[402898481,1768960233692,-500.0,0.00017999,2]
[402898482,1768960233702,-500.0,0.00017999,2]
[402898483,1768960233711,-507.08759658,0.00017999,2]
[402898484,1768960233721,-500.0,0.00017999,2]
[402898485,1768960233731,-500.0,0.00017999,2]
[402898486,1768960233740,-500.0,0.00017999,2]
[402898487,1768960233750,-500.0,0.00017999,2]
[402898488,1768960233760,-500.0,0.00017999,2]
[402898489,1768960233771,-500.0,0.00017999,2]
[402898490,1768960233781,-500.0,0.00017999,2]
[402898491,1768960233791,-500.0,0.00017999,2]
[402898492,1768960233800,-500.0,0.00017999,2]
[402898493,1768960233810,-500.0,0.00017999,2]
[402898494,1768960233819,-500.0,0.00017999,2]
[402898495,1768960233830,-500.0,0.00017999,2]
[402898496,1768960233839,-207.27738091,0.00017999,2]
[402898497,1768960233849,-500.0,0.00017999,2]
[402898498,1768960233859,-500.0,0.00017999,2]
[402898499,1768960233870,-500.0,0.00017999,2]
[402898500,1768960233880,-500.0,0.00017999,2]
[402898501,1768960233891,-540.05408307,0.00017999,2]
[402898502,1768960233900,-300.0,0.00017999,2]
[402898503,1768960233910,-675.00377713,0.00017999,2]
[402898504,1768960233919,-307.90091693,0.00017999,2]
[402898505,1768960233929,-593.90931453,0.00017999,2]
[402898506,1768960233939,-150.0,0.00017999,2]
[402898507,1768960233948,-150.0,0.00017999,2]
[402898508,1768960233959,-509.00220969,0.00017999,2]
[402898509,1768960233969,-497.85229112,0.00017999,2]
[402898510,1768960233979,-182216.75634764,0.00018,2]
[402898511,1768960233988,-348.67138939,0.00018,2]
[402898512,1768960234059,-2909.99999999,0.00018,2]
[402898516,1768960238851,-478.2165507,0.00018,2]
[402898517,1768960238884,-1110.07048827,0.00018,2]
[402898518,1768960238916,-27074.92464064,0.00018,2]
[402898519,1768960238925,-2221158.21548865,0.00018,2]
[402898521,1768960239852,-66126.84448732,0.00018,2]
[402898522,1768960239927,-468884.81477768,0.00018,2]
[402898523,1768960239960,-1613.55138805,0.00018,2]
[402898524,1768960239973,-1059.80161734,0.00018,2]
[402898525,1768960239984,-522.00154566,0.00018,2]
[402898526,1768960240010,-92314.64317886,0.00018,2]
[402898527,1768960240020,-1517.46946338,0.00018,2]
[402898557,1768960244615,-591.16730526,0.000179,2]
[402898558,1768960244624,-1680.76955848,0.00018,2]
[402898559,1768960244637,-1881.73093252,0.00018,2]
[402898566,1768960247220,-1901.1996,0.00018,2]
[402898567,1768960247230,-300759.33366308,0.00018,2]
[402898568,1768960787634,734.56,0.0001383,2]
[402898569,1768961071603,1392.3032322,0.00016338,2]
[402898570,1768961226450,12252.81,0.0001594,2]
[402898573,1768961256973,269.798,0.000226,120]
[402898575,1768961267146,152.23607421,0.00016321,2]
[402898578,1768961292811,54399.3089,0.00016324,2]
[402898587,1768961351366,-300.0,0.00016419,2]
[402898588,1768961351388,-248.75269788,0.00016419,2]
[402898628,1768961431878,-301.24730212,0.00016419,2]
[402898629,1768961431888,-271.0,0.00016419,2]
[402898630,1768961431897,-300.0,0.00016419,2]
[402898631,1768961431907,-696.95899424,0.00016419,2]
[402898632,1768961431918,-503.04100576,0.00016419,2]
[402898633,1768961431928,-288.0,0.00016419,2]
[402898634,1768961431937,-195.0,0.00016419,2]
[402898635,1768961431946,-300.0,0.00016419,2]
[402898636,1768961431955,-250.0,0.00016419,2]
[402898637,1768961431965,-500.0,0.0001642,2]
[402898638,1768961431978,-500.0,0.0001642,2]
[402898639,1768961431988,-483.4060169,0.0001642,2]
[402898640,1768961431998,-500.0,0.0001642,2]
[402898641,1768961432008,-182.50652364,0.0001642,2]
[402898642,1768961432018,-500.0,0.0001642,2]
[402898643,1768961432027,-500.0,0.0001642,2]
[402898644,1768961432037,-500.0,0.0001642,2]
[402898645,1768961432047,-500.0,0.0001642,2]
[402898646,1768961432057,-500.0,0.0001642,2]
[402898647,1768961432066,-500.0,0.0001642,2]
[402898648,1768961432075,-180.43658035,0.0001642,2]
[402898649,1768961432085,-500.0,0.0001642,2]
[402898651,1768961432094,-500.0,0.0001642,2]
[402898653,1768961432104,-500.0,0.0001642,2]
[402898655,1768961432113,-500.0,0.0001642,2]
[402898657,1768961432122,-150.16696671,0.0001642,2]
[402898660,1768961432138,-349.83303329,0.0001642,2]
[402898662,1768961432148,-500.0,0.0001642,2]
[402898664,1768961432156,-500.0,0.0001642,2]
[402898666,1768961432166,-500.0,0.0001642,2]
[402898668,1768961432175,-500.0,0.0001642,2]
[402898670,1768961432185,-500.0,0.0001642,2]
[402898672,1768961432194,-500.0,0.0001642,2]
[402898674,1768961432203,-500.0,0.0001642,2]
[402898675,1768961432212,-500.0,0.0001642,2]
[402898677,1768961432221,-500.0,0.0001642,2]
[402898678,1768961432230,-350.0,0.0001642,2]
[402898679,1768961432240,-500.0,0.0001642,2]
[402898680,1768961432249,-500.0,0.0001642,2]
[402898682,1768961432258,-258.30474219,0.0001642,2]
[402898683,1768961432270,-241.69525781,0.0001642,2]
[402898684,1768961432278,-500.0,0.0001642,2]
[402898685,1768961432287,-500.0,0.0001642,2]
[402898686,1768961432296,-500.0,0.0001642,2]
[402898687,1768961432305,-500.0,0.0001642,2]
[402898688,1768961432314,-500.0,0.0001642,2]
[402898689,1768961432323,-500.0,0.0001642,2]
[402898690,1768961432333,-500.0,0.0001642,2]
[402898691,1768961432342,-500.0,0.0001642,2]
[402898692,1768961432350,-500.0,0.0001642,2]
[402898693,1768961432359,-500.0,0.0001642,2]
[402898694,1768961432369,-500.0,0.0001642,2]
[402898695,1768961432378,-500.0,0.0001642,2]
[402898696,1768961432388,-500.0,0.0001642,2]
[402898697,1768961432398,-500.0,0.0001642,2]
[402898698,1768961432407,-500.0,0.0001642,2]
[402898699,1768961432417,-500.0,0.0001642,2]
[402898700,1768961432426,-500.0,0.0001642,2]
[402898701,1768961432435,-500.0,0.0001642,2]
[402898702,1768961432445,-500.0,0.0001642,2]
[402898703,1768961432454,-500.0,0.0001642,2]
[402898704,1768961432463,-500.0,0.0001642,2]
[402898705,1768961432473,-500.0,0.0001642,2]
[402898706,1768961432482,-500.0,0.0001642,2]
[402898707,1768961432491,-1382.1740686,0.0001642,2]
[402898708,1768961432500,-500.0,0.0001642,2]
[402898709,1768961432509,-1382.1740686,0.0001642,2]
[402898710,1768961432518,-1382.1740686,0.0001642,2]
[402898711,1768961432527,-500.0,0.0001642,2]
[402898712,1768961432537,-1382.1740686,0.0001642,2]
[402898713,1768961432546,-500.0,0.0001642,2]
[402898714,1768961432556,-1382.1740686,0.0001642,2]
[402898715,1768961432565,-1382.1740686,0.0001642,2]
[402898716,1768961432574,-1382.1740686,0.0001642,2]
[402898717,1768961432583,-500.0,0.0001642,2]
[402898718,1768961432592,-1382.1740686,0.0001642,2]
[402898719,1768961432602,-500.0,0.0001642,2]
[402898720,1768961432611,-1382.1740686,0.0001642,2]
[402898721,1768961432620,-1382.1740686,0.0001642,2]
[402898722,1768961432629,-649.44629391,0.0001642,2]
[402898723,1768961432638,-1382.1740686,0.0001642,2]
[402898724,1768961432648,-1382.1740686,0.0001642,2]
[402898725,1768961432659,-212.14002888,0.0001642,2]
[402898726,1768961432754,-1170.03403972,0.0001642,2]
[402898727,1768961432763,-1382.1740686,0.0001642,2]
[402898728,1768961432772,-1382.1740686,0.0001642,2]
[402898729,1768961432782,-1382.1740686,0.0001642,2]
[402898730,1768961432791,-1382.1740686,0.0001642,2]
[402898731,1768961432803,-1382.1740686,0.0001642,2]
[402898732,1768961432814,-1382.1740686,0.0001642,2]
[402898733,1768961432824,-1382.1740686,0.0001642,2]
[402898734,1768961432833,-1382.1740686,0.0001642,2]
[402898735,1768961432842,-1382.1740686,0.0001642,2]
[402898736,1768961432851,-1382.1740686,0.0001642,2]
[402898737,1768961432861,-1382.1740686,0.0001642,2]
[402898738,1768961432870,-1382.1740686,0.0001642,2]
[402898739,1768961432879,-1382.1740686,0.0001642,2]
[402898740,1768961432888,-1382.1740686,0.0001642,2]
[402898741,1768961432898,-1382.1740686,0.0001642,2]
[402898742,1768961432907,-1382.1740686,0.0001642,2]
[402898743,1768961432916,-1382.1740686,0.0001642,2]
[402898744,1768961432926,-1382.1740686,0.0001642,2]
[402898745,1768961432934,-1382.1740686,0.0001642,2]
[402898746,1768961432944,-1382.1740686,0.0001642,2]
[402898747,1768961432954,-1382.1740686,0.0001642,2]
[402898748,1768961432963,-1382.1740686,0.0001642,2]
[402898749,1768961432973,-1382.1740686,0.0001642,2]
[402898750,1768961432982,-1382.1740686,0.0001642,2]
[402898751,1768961432992,-1382.1740686,0.0001642,2]
[402898752,1768961433002,-1382.1740686,0.0001642,2]
[402898753,1768961433012,-1382.1740686,0.0001642,2]
[402898754,1768961433022,-1382.1740686,0.0001642,2]
[402898755,1768961433031,-1382.1740686,0.0001642,2]
[402898756,1768961433041,-1357.04363097,0.0001642,2]
[402898757,1768961433051,-1357.04363097,0.0001642,2]
[402898758,1768961433060,-1357.04363097,0.0001642,2]
[402898759,1768961433070,-1357.04363097,0.0001642,2]
[402898760,1768961433080,-1357.04363097,0.0001642,2]
[402898761,1768961433089,-1357.04363097,0.0001642,2]
[402898762,1768961433099,-1357.04363097,0.0001642,2]
[402898763,1768961433108,-1357.04363097,0.0001642,2]
[402898764,1768961433117,-1357.04363097,0.0001642,2]
[402898765,1768961433127,-1357.04363097,0.0001642,2]
[402898766,1768961433136,-1357.04363097,0.0001642,2]
[402898767,1768961433147,-300.0,0.0001642,2]
[402898768,1768961433156,-600.0,0.00016421,2]
[402898769,1768961433165,-2400.73332691,0.00016421,2]
[402898770,1768961433175,-195.0,0.00016421,2]
[402898771,1768961433184,-500.0,0.00016422,2]
[402898772,1768961433194,-609.60609223,0.00016422,2]
[402898773,1768961433203,-909.04,0.00016422,2]
[402898774,1768961433213,-280.04933894,0.00016423,2]
[402898775,1768961433224,-500.0,0.00016423,2]
[402898776,1768961433233,-224.7114545,0.00016423,2]
[402898777,1768961433243,-106642.06,0.00016424,2]
[402898778,1768961433252,-500.0,0.00016438,2]
[402898779,1768961433262,-500.0,0.00016438,2]
[402898780,1768961433271,-500.0,0.00016438,2]
[402898781,1768961433281,-500.0,0.00016438,2]
[402898782,1768961433291,-500.0,0.00016438,2]
[402898783,1768961433300,-500.0,0.00016438,2]
[402898784,1768961433309,-500.0,0.00016438,2]
[402898785,1768961433318,-500.0,0.00016438,2]
[402898786,1768961433328,-500.0,0.00016438,2]
[402898787,1768961433337,-500.0,0.00016438,2]
[402898788,1768961433346,-500.0,0.00016438,2]
[402898789,1768961433356,-500.0,0.00016438,2]
[402898790,1768961433367,-500.0,0.00016438,2]
[402898791,1768961433376,-500.0,0.00016438,2]
[402898792,1768961433386,-500.0,0.00016438,2]
[402898793,1768961433395,-500.0,0.00016438,2]
[402898794,1768961433405,-500.0,0.00016438,2]
[402898795,1768961433414,-500.0,0.00016438,2]
[402898796,1768961433424,-500.0,0.00016438,2]
[402898797,1768961433433,-500.0,0.00016438,2]
[402898798,1768961433443,-500.0,0.00016438,2]
[402898799,1768961433453,-500.0,0.00016438,2]
[402898800,1768961433463,-500.0,0.00016438,2]
[402898801,1768961433473,-500.0,0.00016438,2]
[402898802,1768961433483,-500.0,0.00016438,2]
[402898803,1768961433493,-500.0,0.00016438,2]
[402898804,1768961433503,-500.0,0.00016438,2]
[402898805,1768961433513,-500.0,0.00016438,2]
[402898806,1768961433523,-500.0,0.00016438,2]
[402898807,1768961433532,-500.0,0.00016438,2]
[402898808,1768961433541,-500.0,0.00016438,2]
[402898809,1768961433887,-500.0,0.00016438,2]
[402898810,1768961433898,-500.0,0.00016438,2]
[402898811,1768961433908,-500.0,0.00016438,2]
[402898812,1768961433917,-500.0,0.00016438,2]
[402898813,1768961433927,-175.57232878,0.00016438,2]
[402898814,1768961433936,-500.0,0.00016438,2]
[402898815,1768961433946,-500.0,0.00016438,2]
[402898816,1768961433956,-500.0,0.00016438,2]
[402898817,1768961433965,-500.0,0.00016438,2]
[402898818,1768961433975,-500.0,0.00016438,2]
[402898819,1768961433984,-500.0,0.00016438,2]
[402898820,1768961433994,-500.0,0.00016438,2]
[402898821,1768961434003,-500.0,0.00016438,2]
[402898822,1768961434012,-350.0,0.00016438,2]
[402898823,1768961434022,-500.0,0.00016438,2]
[402898824,1768961434031,-500.0,0.00016438,2]
[402898825,1768961434041,-500.0,0.00016438,2]
[402898826,1768961434051,-500.0,0.00016438,2]
[402898827,1768961434060,-500.0,0.00016438,2]
[402898828,1768961434070,-500.0,0.00016438,2]
[402898829,1768961434080,-500.0,0.00016438,2]
[402898830,1768961434090,-500.0,0.00016438,2]
[402898831,1768961434100,-500.0,0.00016438,2]
[402898832,1768961434110,-500.0,0.00016438,2]
[402898833,1768961434119,-500.0,0.00016438,2]
[402898834,1768961434128,-500.0,0.00016438,2]
[402898835,1768961434139,-150.00084448,0.00016581,2]
[402898836,1768961434151,-238.6411453,0.00016696,2]
[402898837,1768961434161,-909.04,0.00016696,2]
[402898838,1768961434171,-2500.0,0.00016765,2]
[402898839,1768961434181,-1215.56,0.00016855,2]
[402898840,1768961434190,-200.0,0.00016865,2]
[402898841,1768961434200,-500.0,0.00016865,2]
[402898842,1768961434209,-500.0,0.00016865,2]
[402898843,1768961434219,-500.0,0.00016865,2]
[402898844,1768961434228,-500.0,0.00016865,2]
[402898845,1768961434238,-909.04,0.0001697,2]
[402898846,1768961434247,-174.61919141,0.00017063,2]
[402898847,1768961434256,-322.6107,0.00017063,2]
[402898848,1768961434266,-2393.07170517,0.00017063,2]
[402898849,1768961434275,-194.72792766,0.00017063,2]
[402898850,1768961434285,-2567.0,0.00017063,2]
[402898851,1768961434294,-2543.0,0.00017063,2]
[402898852,1768961434304,-500.0,0.00017073,2]
[402898853,1768961434313,-3240.0,0.00017075,2]
[402898854,1768961434323,-1514.86,0.0001711,2]
[402898855,1768961434333,-156.6,0.0001712,2]
[402898856,1768961434342,-909.04,0.00017244,2]
[402898857,1768961434351,-293.71,0.00017302,2]
[402898858,1768961434361,-569.49,0.00017352,2]
[402898859,1768961434370,-175.1,0.00017353,2]
[402898860,1768961434380,-150.21946651,0.00017373,2]
[402898861,1768961434390,-500.0,0.00017373,2]
[402898862,1768961434400,-500.0,0.00017373,2]
[402898863,1768961434409,-500.0,0.00017373,2]
[402898864,1768961434419,-539.19257898,0.00017417,2]
[402898865,1768961434428,-151.0,0.00017517,2]
[402898866,1768961434438,-500.0,0.00017517,2]
[402898867,1768961434447,-151.0,0.00017517,2]
[402898868,1768961434457,-500.0,0.00017517,2]
[402898869,1768961434466,-500.0,0.00017517,2]
[402898870,1768961434476,-151.0,0.00017517,2]